[Event "*** Titled Tuesday Blitz"]
[Site "Chess.com"]
[Date "2020.11.03"]
[Round "8"]
[White "Duhless"]
[Black "BilodeauA"]
[Result "1/2-1/2"]
[WhiteElo "2997"]
[BlackElo "2884"]
[TimeControl "180+1"]
[EndTime "11:32:57 PST"]
[Termination "Game drawn by agreement"]

1. e4 {[%clk 0:03:00.9]} 1... e5 {[%clk 0:02:58]} 2. Nf3 {[%clk 0:03:01.2]} 2...
Nc6 {[%clk 0:02:58.7]} 3. d4 {[%clk 0:02:59.2]} 3... exd4 {[%clk 0:02:57.8]} 4.
Nxd4 {[%clk 0:03:00.1]} 4... Nf6 {[%clk 0:02:57.1]} 5. Nxc6 {[%clk 0:03:00]}
5... bxc6 {[%clk 0:02:56.4]} 6. Bd3 {[%clk 0:03:00.6]} 6... d5 {[%clk
0:02:54.9]} 7. exd5 {[%clk 0:03:01.2]} 7... cxd5 {[%clk 0:02:55]} 8. O-O {[%clk
0:03:01.7]} 8... Bd6 {[%clk 0:02:54.6]} 9. Re1+ {[%clk 0:03:00.5]} 9... Be6
{[%clk 0:02:53.8]} 10. Bb5+ {[%clk 0:02:55.6]} 10... Nd7 {[%clk 0:02:36.3]} 11.
Bc6 {[%clk 0:02:45.1]} 11... Rb8 {[%clk 0:02:35.5]} 12. Bxd5 {[%clk 0:02:44.2]}
12... O-O {[%clk 0:02:35.6]} 13. Bxe6 {[%clk 0:02:43.8]} 13... fxe6 {[%clk
0:02:35.1]} 14. Qe2 {[%clk 0:02:11.4]} 14... Rb4 {[%clk 0:01:27.9]} 15. Nd2
{[%clk 0:01:50.6]} 15... Ne5 {[%clk 0:01:03.1]} 16. Ne4 {[%clk 0:01:28.8]} 16...
Qh4 {[%clk 0:01:02.7]} 17. Nxd6 {[%clk 0:01:20.4]} 17... cxd6 {[%clk 0:01:01]}
18. f4 {[%clk 0:01:18.9]} 18... Ng4 {[%clk 0:00:45.1]} 19. g3 {[%clk 0:01:06.7]}
19... Qh5 {[%clk 0:00:41.3]} 20. Bd2 {[%clk 0:00:54.3]} 20... Re4 {[%clk
0:00:33.4]} 21. Qg2 {[%clk 0:00:49.3]} 21... Qc5+ {[%clk 0:00:33.8]} 22. Kf1
{[%clk 0:00:48.8]} 22... Qb5+ {[%clk 0:00:26.9]} 23. Re2 {[%clk 0:00:42]} 23...
d5 {[%clk 0:00:27.4]} 24. b3 {[%clk 0:00:39.2]} 24... e5 {[%clk 0:00:22.5]} 25.
c4 {[%clk 0:00:36.3]} 25... Qb7 {[%clk 0:00:21.4]} 26. cxd5 {[%clk 0:00:28]}
26... Rxe2 {[%clk 0:00:19.6]} 27. Qxe2 {[%clk 0:00:28.5]} 27... exf4 {[%clk
0:00:13.7]} 28. Qxg4 {[%clk 0:00:08.8]} 28... fxg3+ {[%clk 0:00:14.1]} 29. Kg1
{[%clk 0:00:06.1]} 29... Qb6+ {[%clk 0:00:13.6]} 30. Kh1 {[%clk 0:00:06.1]}
30... Qf2 {[%clk 0:00:11.9]} 31. hxg3 {[%clk 0:00:04.2]} 31... Qxd2 {[%clk
0:00:10.8]} 32. Qe6+ {[%clk 0:00:04.3]} 32... Kh8 {[%clk 0:00:10.8]} 33. Re1
{[%clk 0:00:04.7]} 33... h6 {[%clk 0:00:09.7]} 34. d6 {[%clk 0:00:04.4]} 34...
Rf2 {[%clk 0:00:07]} 35. Qe8+ {[%clk 0:00:04.4]} 35... Kh7 {[%clk 0:00:07.5]}
36. Qe4+ {[%clk 0:00:04.8]} 36... Kh8 {[%clk 0:00:08.1]} 37. Qe8+ {[%clk
0:00:04.9]} 37... Kh7 {[%clk 0:00:08.7]} 38. Qe4+ {[%clk 0:00:05.5]} 38... Kh8
{[%clk 0:00:08.5]} 39. Kg1 {[%clk 0:00:06]} 39... Rf8 {[%clk 0:00:06.7]} 40. Qe3
{[%clk 0:00:03.1]} 40... Qxd6 {[%clk 0:00:05.2]} 41. Rf1 {[%clk 0:00:03.6]}
41... Rd8 {[%clk 0:00:05.1]} 42. Kg2 {[%clk 0:00:03.7]} 42... Qc6+ {[%clk
0:00:05.3]} 43. Qf3 {[%clk 0:00:03.5]} 43... Qg6 {[%clk 0:00:05.7]} 44. Rf2
{[%clk 0:00:03.4]} 44... Kh7 {[%clk 0:00:06.1]} 45. Qf5 {[%clk 0:00:03.4]} 45...
Qxf5 {[%clk 0:00:06.4]} 46. Rxf5 {[%clk 0:00:04.3]} 46... Kg6 {[%clk 0:00:07.1]}
47. Ra5 {[%clk 0:00:03.8]} 47... Rd7 {[%clk 0:00:07.2]} 48. Kh3 {[%clk
0:00:04.2]} 48... h5 {[%clk 0:00:07.8]} 49. Kh4 {[%clk 0:00:03.7]} 1/2-1/2

[Event "*** Titled Tuesday Blitz"]
[Site "Chess.com"]
[Date "2020.11.03"]
[Round "8"]
[White "Indianlad"]
[Black "AlexeiShirov"]
[Result "1-0"]
[WhiteElo "2950"]
[BlackElo "2800"]
[TimeControl "180+1"]
[EndTime "11:32:57 PST"]
[Termination "Indianlad won by resignation"]

1. Nf3 {[%clk 0:03:00.4]} 1... d5 {[%clk 0:02:59.1]} 2. d4 {[%clk 0:03:00.4]}
2... Nf6 {[%clk 0:02:57.8]} 3. Bf4 {[%clk 0:02:59.5]} 3... c5 {[%clk 0:02:57]}
4. e3 {[%clk 0:02:59.6]} 4... Nc6 {[%clk 0:02:55.7]} 5. Nbd2 {[%clk 0:02:59.3]}
5... Qb6 {[%clk 0:02:55.1]} 6. dxc5 {[%clk 0:02:57.7]} 6... Qxb2 {[%clk
0:02:54.6]} 7. Rb1 {[%clk 0:02:57.8]} 7... Qc3 {[%clk 0:02:54.3]} 8. Bb5 {[%clk
0:02:57.8]} 8... e6 {[%clk 0:02:49.7]} 9. O-O {[%clk 0:02:57.4]} 9... Be7 {[%clk
0:02:48.7]} 10. Nb3 {[%clk 0:02:51.9]} 10... Nd7 {[%clk 0:02:37]} 11. Qd3 {[%clk
0:02:41]} 11... Qxd3 {[%clk 0:02:25.2]} 12. cxd3 {[%clk 0:02:41.4]} 12... O-O
{[%clk 0:02:10.3]} 13. d4 {[%clk 0:02:39.9]} 13... Bd8 {[%clk 0:01:51.4]} 14.
Rfc1 {[%clk 0:02:34.5]} 14... Re8 {[%clk 0:01:47.7]} 15. a4 {[%clk 0:02:14]}
15... f6 {[%clk 0:01:45.6]} 16. Bd6 {[%clk 0:02:12.1]} 16... a5 {[%clk
0:01:30.8]} 17. h3 {[%clk 0:02:07.2]} 17... Kf7 {[%clk 0:01:28]} 18. Nbd2 {[%clk
0:02:04]} 18... Nb4 {[%clk 0:01:19.3]} 19. e4 {[%clk 0:02:03]} 19... g5 {[%clk
0:01:15.3]} 20. exd5 {[%clk 0:02:01.9]} 20... exd5 {[%clk 0:01:14.5]} 21. Nf1
{[%clk 0:02:00.7]} 21... Be7 {[%clk 0:01:04.1]} 22. Bc7 {[%clk 0:01:54.2]} 22...
Bd8 {[%clk 0:01:04.1]} 23. Bxd8 {[%clk 0:01:54.1]} 23... Rxd8 {[%clk 0:01:03.6]}
24. Ne3 {[%clk 0:01:54.9]} 24... Nf8 {[%clk 0:01:02.9]} 25. Ne1 {[%clk
0:01:49.2]} 25... Ne6 {[%clk 0:01:02.1]} 26. N1c2 {[%clk 0:01:49.1]} 26... Nc6
{[%clk 0:01:00.9]} 27. Bxc6 {[%clk 0:01:46.9]} 27... bxc6 {[%clk 0:01:00.8]} 28.
Nf5 {[%clk 0:01:40.2]} 28... Nf4 {[%clk 0:00:59.3]} 29. Nd6+ {[%clk 0:01:37]}
29... Rxd6 {[%clk 0:00:59.1]} 30. cxd6 {[%clk 0:01:37.9]} 30... Ne2+ {[%clk
0:00:59.4]} 31. Kf1 {[%clk 0:01:38.5]} 31... Nxc1 {[%clk 0:01:00]} 32. Rxc1
{[%clk 0:01:38.5]} 32... Ke6 {[%clk 0:01:00.6]} 33. Ne3 {[%clk 0:01:30.1]} 33...
Kxd6 {[%clk 0:01:00.6]} 34. Rc5 {[%clk 0:01:30.4]} 34... Bd7 {[%clk 0:01:00.2]}
35. g4 {[%clk 0:01:30.1]} 35... h5 {[%clk 0:00:58.4]} 36. gxh5 {[%clk
0:01:24.1]} 36... Bxh3+ {[%clk 0:00:56.6]} 37. Ke2 {[%clk 0:01:24.8]} 37... Rh8
{[%clk 0:00:54.6]} 38. Rxa5 {[%clk 0:01:24.2]} 38... Rxh5 {[%clk 0:00:54.1]} 39.
Ra8 {[%clk 0:01:24.3]} 39... Bd7 {[%clk 0:00:51.4]} 40. a5 {[%clk 0:01:23.5]}
40... Rh1 {[%clk 0:00:51.3]} 41. Nc2 {[%clk 0:01:22]} 41... Bf5 {[%clk
0:00:48.4]} 42. Nb4 {[%clk 0:01:21.8]} 42... Rb1 {[%clk 0:00:47.4]} 43. Na6
{[%clk 0:01:21.3]} 43... Rb2+ {[%clk 0:00:44.2]} 44. Ke1 {[%clk 0:01:15.5]}
44... Bg4 {[%clk 0:00:41.4]} 45. Nc5 {[%clk 0:01:14.1]} 45... Re2+ {[%clk
0:00:40.7]} 46. Kf1 {[%clk 0:01:14.5]} 46... Bf3 {[%clk 0:00:39.7]} 47. Ra7
{[%clk 0:01:01]} 47... Bg4 {[%clk 0:00:17.7]} 48. f3 {[%clk 0:01:01.1]} 48...
Rd2 {[%clk 0:00:17.6]} 49. fxg4 {[%clk 0:01:01.1]} 49... Rxd4 {[%clk 0:00:17.7]}
50. Nb7+ {[%clk 0:00:55.8]} 50... Kc7 {[%clk 0:00:17.5]} 51. Nc5+ {[%clk
0:00:55.4]} 51... Kd6 {[%clk 0:00:17.6]} 52. Nd7 {[%clk 0:00:42.9]} 52... Rxg4
{[%clk 0:00:16.6]} 53. a6 {[%clk 0:00:43.7]} 53... Ra4 {[%clk 0:00:13.9]} 54.
Nb6 {[%clk 0:00:34.3]} 54... Rb4 {[%clk 0:00:13.1]} 55. Rb7 {[%clk 0:00:33.1]}
55... Kc5 {[%clk 0:00:11.7]} 56. a7 {[%clk 0:00:33.1]} 56... Rb1+ {[%clk
0:00:09.6]} 57. Ke2 {[%clk 0:00:33.2]} 57... Ra1 {[%clk 0:00:09.6]} 58. a8=Q
{[%clk 0:00:33]} 58... Rxa8 {[%clk 0:00:08.8]} 59. Nxa8 {[%clk 0:00:33.9]} 1-0

[Event "*** Titled Tuesday Blitz"]
[Site "Chess.com"]
[Date "2020.11.03"]
[Round "8"]
[White "Klavdia_Nik"]
[Black "Ajedrez_con_German"]
[Result "0-1"]
[WhiteElo "2113"]
[BlackElo "2472"]
[TimeControl "180+1"]
[EndTime "11:32:57 PST"]
[Termination "Ajedrez_con_German won on time"]

1. Nf3 {[%clk 0:02:55.7]} 1... Nf6 {[%clk 0:02:57.4]} 2. c4 {[%clk 0:02:39.1]}
2... c6 {[%clk 0:02:55.5]} 3. b3 {[%clk 0:02:24.3]} 3... d5 {[%clk 0:02:49.3]}
4. Bb2 {[%clk 0:02:20.7]} 4... Bf5 {[%clk 0:02:45.9]} 5. g3 {[%clk 0:02:20.5]}
5... e6 {[%clk 0:02:41.6]} 6. Bg2 {[%clk 0:02:20.8]} 6... Be7 {[%clk 0:02:40.7]}
7. O-O {[%clk 0:02:20.8]} 7... O-O {[%clk 0:02:39.4]} 8. d3 {[%clk 0:02:20.7]}
8... h6 {[%clk 0:02:35.2]} 9. Nbd2 {[%clk 0:02:20.2]} 9... a5 {[%clk 0:02:35]}
10. a3 {[%clk 0:02:18.8]} 10... Nbd7 {[%clk 0:02:31.9]} 11. Qc2 {[%clk
0:02:10.5]} 11... Bh7 {[%clk 0:02:29.1]} 12. Bc3 {[%clk 0:01:59.7]} 12... Bd6
{[%clk 0:02:14.7]} 13. Qb2 {[%clk 0:01:42.2]} 13... Qe7 {[%clk 0:02:11.3]} 14.
d4 {[%clk 0:01:12.3]} 14... Ne4 {[%clk 0:02:05.7]} 15. Nxe4 {[%clk 0:01:08.1]}
15... Bxe4 {[%clk 0:02:05.3]} 16. c5 {[%clk 0:00:47.2]} 16... Bc7 {[%clk
0:02:00.6]} 17. b4 {[%clk 0:00:47.4]} 17... b5 {[%clk 0:01:29.5]} 18. e3 {[%clk
0:00:45.1]} 18... Ra6 {[%clk 0:01:18.7]} 19. Nd2 {[%clk 0:00:40.8]} 19... Bxg2
{[%clk 0:01:17.6]} 20. Kxg2 {[%clk 0:00:41.7]} 20... Rfa8 {[%clk 0:01:14.2]} 21.
f4 {[%clk 0:00:38.4]} 21... f5 {[%clk 0:01:02.9]} 22. Nf3 {[%clk 0:00:33.7]}
22... g5 {[%clk 0:00:41.2]} 23. Ne5 {[%clk 0:00:29.8]} 23... Nxe5 {[%clk
0:00:36.5]} 24. dxe5 {[%clk 0:00:24.8]} 24... Kh7 {[%clk 0:00:27.8]} 25. Kf2
{[%clk 0:00:17.2]} 25... Bd8 {[%clk 0:00:25.8]} 26. Rh1 {[%clk 0:00:15]} 26...
Qa7 {[%clk 0:00:24.5]} 27. h4 {[%clk 0:00:13.7]} 27... gxh4 {[%clk 0:00:23.2]}
28. gxh4 {[%clk 0:00:14]} 28... axb4 {[%clk 0:00:22.6]} 29. Bxb4 {[%clk
0:00:14]} 29... Qf7 {[%clk 0:00:19.3]} 30. Qe2 {[%clk 0:00:13.7]} 30... Ba5
{[%clk 0:00:18]} 31. Bxa5 {[%clk 0:00:11.3]} 31... Rxa5 {[%clk 0:00:18.1]} 32.
Qb2 {[%clk 0:00:09.7]} 32... Rg8 {[%clk 0:00:15]} 33. h5 {[%clk 0:00:09.1]}
33... Raa8 {[%clk 0:00:07.4]} 34. Rag1 {[%clk 0:00:08.1]} 34... Rxg1 {[%clk
0:00:07.4]} 35. Kxg1 {[%clk 0:00:07.6]} 35... Rg8+ {[%clk 0:00:07.4]} 36. Kf1
{[%clk 0:00:08.1]} 36... Qg7 {[%clk 0:00:07.7]} 37. Qf2 {[%clk 0:00:08]} 37...
Qg4 {[%clk 0:00:07.8]} 38. Ke1 {[%clk 0:00:07.8]} 38... Ra8 {[%clk 0:00:06.7]}
39. Rg1 {[%clk 0:00:06.6]} 39... Qxh5 {[%clk 0:00:06.8]} 40. Qg2 {[%clk
0:00:05.9]} 40... Qf7 {[%clk 0:00:07]} 41. Qb2 {[%clk 0:00:05.1]} 41... Rg8
{[%clk 0:00:06.3]} 42. Rh1 {[%clk 0:00:05.2]} 42... Qg6 {[%clk 0:00:06.3]} 43.
Qh2 {[%clk 0:00:05.1]} 43... Qg3+ {[%clk 0:00:05.1]} 44. Ke2 {[%clk 0:00:03.6]}
44... Qg2+ {[%clk 0:00:04.2]} 0-1

[Event "*** Titled Tuesday Blitz"]
[Site "Chess.com"]
[Date "2020.11.03"]
[Round "8"]
[White "brunomorado"]
[Black "lefonghua"]
[Result "1/2-1/2"]
[WhiteElo "2440"]
[BlackElo "2339"]
[TimeControl "180+1"]
[EndTime "11:32:57 PST"]
[Termination "Game drawn by agreement"]

1. d4 {[%clk 0:03:00]} 1... Nf6 {[%clk 0:02:59.8]} 2. Nc3 {[%clk 0:02:59.6]}
2... d5 {[%clk 0:02:59.4]} 3. Bg5 {[%clk 0:02:59.7]} 3... g6 {[%clk 0:02:58.1]}
4. Nf3 {[%clk 0:02:54.5]} 4... Bg7 {[%clk 0:02:57.4]} 5. e3 {[%clk 0:02:54.8]}
5... O-O {[%clk 0:02:55.5]} 6. Bd3 {[%clk 0:02:54.3]} 6... c5 {[%clk 0:02:55]}
7. O-O {[%clk 0:02:47.8]} 7... Nc6 {[%clk 0:02:54.9]} 8. Ne5 {[%clk 0:02:37.8]}
8... cxd4 {[%clk 0:02:48.1]} 9. Nxc6 {[%clk 0:02:37.3]} 9... bxc6 {[%clk
0:02:48.1]} 10. exd4 {[%clk 0:02:37.5]} 10... Rb8 {[%clk 0:02:41.2]} 11. Na4
{[%clk 0:02:30.6]} 11... Nd7 {[%clk 0:02:28.8]} 12. c3 {[%clk 0:02:27.1]} 12...
Re8 {[%clk 0:02:27.7]} 13. Re1 {[%clk 0:02:26]} 13... f6 {[%clk 0:02:19.7]} 14.
Bf4 {[%clk 0:02:24]} 14... e5 {[%clk 0:02:19.8]} 15. Bg3 {[%clk 0:02:16.5]}
15... Qc7 {[%clk 0:02:06.5]} 16. c4 {[%clk 0:01:56.6]} 16... Nb6 {[%clk
0:01:50.9]} 17. Nxb6 {[%clk 0:01:53.2]} 17... axb6 {[%clk 0:01:33.5]} 18. cxd5
{[%clk 0:01:38.1]} 18... cxd5 {[%clk 0:01:34.4]} 19. Bb5 {[%clk 0:01:38.4]}
19... Rd8 {[%clk 0:01:22.8]} 20. Rc1 {[%clk 0:01:34.8]} 20... Qe7 {[%clk
0:01:15.2]} 21. Bc6 {[%clk 0:01:06.2]} 21... Bb7 {[%clk 0:01:12.8]} 22. Qb3
{[%clk 0:00:59.2]} 22... Bxc6 {[%clk 0:01:05.4]} 23. Rxc6 {[%clk 0:01:00.1]}
23... b5 {[%clk 0:00:58]} 24. Rc5 {[%clk 0:00:53.7]} 24... Qf7 {[%clk
0:00:37.6]} 25. dxe5 {[%clk 0:00:51.8]} 25... fxe5 {[%clk 0:00:37.6]} 26. Bxe5
{[%clk 0:00:51.2]} 26... Re8 {[%clk 0:00:34]} 27. Qxd5 {[%clk 0:00:39.3]} 27...
Qxd5 {[%clk 0:00:28.9]} 28. Rxd5 {[%clk 0:00:40.2]} 28... Ra8 {[%clk 0:00:26.5]}
29. Rxb5 {[%clk 0:00:36]} 29... Rxa2 {[%clk 0:00:25.2]} 30. f4 {[%clk
0:00:36.4]} 30... Bxe5 {[%clk 0:00:21.8]} 31. fxe5 {[%clk 0:00:37.3]} 31... Re6
{[%clk 0:00:20.6]} 32. Rb7 {[%clk 0:00:34.8]} 32... Ra5 {[%clk 0:00:20.1]} 33.
Rd1 {[%clk 0:00:16]} 33... Raxe5 {[%clk 0:00:19.3]} 34. Rd8+ {[%clk 0:00:16.4]}
34... Re8 {[%clk 0:00:19.3]} 35. Rxe8+ {[%clk 0:00:17]} 35... Rxe8 {[%clk
0:00:20.2]} 36. Kf2 {[%clk 0:00:17.9]} 36... Rc8 {[%clk 0:00:20.1]} 37. Kg3
{[%clk 0:00:18.2]} 37... Rc4 {[%clk 0:00:18.7]} 38. h4 {[%clk 0:00:18.3]} 38...
h5 {[%clk 0:00:19]} 39. Rb6 {[%clk 0:00:17.9]} 39... Kg7 {[%clk 0:00:18.9]} 40.
b3 {[%clk 0:00:18.6]} 40... Rd4 {[%clk 0:00:18.4]} 41. Rc6 {[%clk 0:00:18.8]}
41... Rd3+ {[%clk 0:00:18.5]} 42. Kf4 {[%clk 0:00:19.3]} 42... Rxb3 {[%clk
0:00:18.1]} 43. g3 {[%clk 0:00:19.5]} 43... Rb4+ {[%clk 0:00:18.2]} 44. Kf3
{[%clk 0:00:20.4]} 44... Rb3+ {[%clk 0:00:18.6]} 45. Kg2 {[%clk 0:00:21]} 45...
Rb4 {[%clk 0:00:19.1]} 46. Kh3 {[%clk 0:00:21.5]} 46... Kh6 {[%clk 0:00:19.4]}
47. Rd6 {[%clk 0:00:21.4]} 47... Rb2 {[%clk 0:00:19.6]} 48. Rd3 {[%clk
0:00:21.3]} 48... Rc2 {[%clk 0:00:19.9]} 49. Rd6 {[%clk 0:00:21.5]} 49... Re2
{[%clk 0:00:20.1]} 50. Rd8 {[%clk 0:00:21.8]} 50... Rf2 {[%clk 0:00:20.3]} 51.
Rh8+ {[%clk 0:00:22.2]} 51... Kg7 {[%clk 0:00:20]} 52. Ra8 {[%clk 0:00:23.1]}
52... Rb2 {[%clk 0:00:20.1]} 53. Ra5 {[%clk 0:00:24]} 53... Kh6 {[%clk
0:00:20.4]} 54. Rg5 {[%clk 0:00:23.6]} 54... Rc2 {[%clk 0:00:20.5]} 55. Re5
{[%clk 0:00:23.5]} 55... Rc1 {[%clk 0:00:20.8]} 56. Re2 {[%clk 0:00:23.6]} 56...
Rh1+ {[%clk 0:00:20.8]} 57. Kg2 {[%clk 0:00:23.5]} 57... Ra1 {[%clk 0:00:21.7]}
58. Re5 {[%clk 0:00:24]} 58... Ra2+ {[%clk 0:00:22]} 59. Kh3 {[%clk 0:00:24.9]}
59... Ra3 {[%clk 0:00:22.8]} 60. Rd5 {[%clk 0:00:25.2]} 60... Ra2 {[%clk
0:00:23.2]} 61. Re5 {[%clk 0:00:25.2]} 61... Rb2 {[%clk 0:00:23.6]} 62. Rd5
{[%clk 0:00:25.4]} 62... Re2 {[%clk 0:00:23.8]} 1/2-1/2

[Event "*** Titled Tuesday Blitz"]
[Site "Chess.com"]
[Date "2020.11.03"]
[Round "8"]
[White "swimmerchess"]
[Black "GMTalks_Youtube"]
[Result "1-0"]
[WhiteElo "2842"]
[BlackElo "2596"]
[TimeControl "180+1"]
[EndTime "11:32:58 PST"]
[Termination "swimmerchess won by checkmate"]

1. e4 {[%clk 0:03:00.9]} 1... e5 {[%clk 0:02:59.6]} 2. Nf3 {[%clk 0:03:01]} 2...
Nc6 {[%clk 0:02:59.8]} 3. Bb5 {[%clk 0:03:01.6]} 3... a6 {[%clk 0:02:59.9]} 4.
Ba4 {[%clk 0:03:01.9]} 4... Nf6 {[%clk 0:03:00.1]} 5. O-O {[%clk 0:03:02.4]}
5... Be7 {[%clk 0:02:59.9]} 6. Re1 {[%clk 0:03:03]} 6... b5 {[%clk 0:02:59.5]}
7. Bb3 {[%clk 0:03:03.5]} 7... O-O {[%clk 0:02:57.1]} 8. a3 {[%clk 0:03:02.3]}
8... d6 {[%clk 0:02:50.7]} 9. c3 {[%clk 0:03:01.8]} 9... Na5 {[%clk 0:02:31.5]}
10. Ba2 {[%clk 0:03:01.6]} 10... c5 {[%clk 0:02:32.1]} 11. d4 {[%clk 0:03:01.7]}
11... Qc7 {[%clk 0:02:29.1]} 12. Bg5 {[%clk 0:02:54.3]} 12... h6 {[%clk
0:02:26.2]} 13. Bh4 {[%clk 0:02:53.6]} 13... Bg4 {[%clk 0:02:13.1]} 14. Nbd2
{[%clk 0:02:46.5]} 14... Rac8 {[%clk 0:01:48.7]} 15. h3 {[%clk 0:02:23.5]} 15...
Bh5 {[%clk 0:01:46.3]} 16. Rc1 {[%clk 0:02:19]} 16... Nc6 {[%clk 0:01:33.8]} 17.
d5 {[%clk 0:01:44.3]} 17... Nb8 {[%clk 0:01:28.5]} 18. c4 {[%clk 0:01:38.1]}
18... Nh7 {[%clk 0:01:18.5]} 19. Bxe7 {[%clk 0:01:21.3]} 19... Qxe7 {[%clk
0:01:18.2]} 20. g4 {[%clk 0:01:22.2]} 20... Bg6 {[%clk 0:01:17.4]} 21. b4 {[%clk
0:01:23.1]} 21... Nd7 {[%clk 0:01:15.4]} 22. Qe2 {[%clk 0:01:14.6]} 22... Rb8
{[%clk 0:00:50.8]} 23. Nb3 {[%clk 0:01:04.7]} 23... cxb4 {[%clk 0:00:42.5]} 24.
axb4 {[%clk 0:01:04.8]} 24... bxc4 {[%clk 0:00:43.1]} 25. Na5 {[%clk 0:01:04.1]}
25... Qf6 {[%clk 0:00:40.3]} 26. Nc6 {[%clk 0:01:04.2]} 26... Rb6 {[%clk
0:00:39.7]} 27. Bxc4 {[%clk 0:01:04.6]} 27... h5 {[%clk 0:00:36.4]} 28. Qe3
{[%clk 0:01:01.6]} 28... hxg4 {[%clk 0:00:29.7]} 29. hxg4 {[%clk 0:01:02.5]}
29... Qf4 {[%clk 0:00:26.5]} 30. Qxf4 {[%clk 0:01:00.4]} 30... exf4 {[%clk
0:00:25.7]} 31. Nfd4 {[%clk 0:01:00.4]} 31... f6 {[%clk 0:00:19.9]} 32. f3
{[%clk 0:00:54.3]} 32... Ng5 {[%clk 0:00:19]} 33. Kg2 {[%clk 0:00:53.6]} 33...
Ne5 {[%clk 0:00:19.5]} 34. Be2 {[%clk 0:00:50.2]} 34... Be8 {[%clk 0:00:17.8]}
35. Ne7+ {[%clk 0:00:44.9]} 35... Kf7 {[%clk 0:00:17.7]} 36. Nef5 {[%clk
0:00:45.4]} 36... g6 {[%clk 0:00:18.1]} 37. Rc7+ {[%clk 0:00:42.4]} 37... Bd7
{[%clk 0:00:18.3]} 38. Ne6 {[%clk 0:00:15.7]} 38... gxf5 {[%clk 0:00:17.1]} 39.
Nxf8 {[%clk 0:00:15]} 39... Kxf8 {[%clk 0:00:17.2]} 40. gxf5 {[%clk 0:00:15.3]}
40... Rxb4 {[%clk 0:00:16.9]} 41. Bxa6 {[%clk 0:00:15.4]} 41... Rb2+ {[%clk
0:00:16.8]} 42. Re2 {[%clk 0:00:15.8]} 42... Rb3 {[%clk 0:00:13.6]} 43. Ra2
{[%clk 0:00:14.7]} 43... Ngxf3 {[%clk 0:00:13.3]} 44. Be2 {[%clk 0:00:14.4]}
44... Nh4+ {[%clk 0:00:13.5]} 45. Kh2 {[%clk 0:00:14.7]} 45... Ke7 {[%clk
0:00:12.1]} 46. Bh5 {[%clk 0:00:10.1]} 46... Nhf3+ {[%clk 0:00:11.6]} 47. Kg2
{[%clk 0:00:09.2]} 47... Ng5 {[%clk 0:00:10.7]} 48. Ra8 {[%clk 0:00:08.9]} 48...
Rg3+ {[%clk 0:00:11.1]} 49. Kf2 {[%clk 0:00:08.3]} 49... Nxe4+ {[%clk
0:00:11.6]} 50. Ke2 {[%clk 0:00:08.7]} 50... Re3+ {[%clk 0:00:12]} 51. Kd1
{[%clk 0:00:09]} 51... f3 {[%clk 0:00:12.4]} 52. Re8# {[%clk 0:00:08.3]} 1-0

[Event "*** Titled Tuesday Blitz"]
[Site "Chess.com"]
[Date "2020.11.03"]
[Round "8"]
[White "BlackBoarder"]
[Black "zmeeed67"]
[Result "1/2-1/2"]
[WhiteElo "2525"]
[BlackElo "2363"]
[TimeControl "180+1"]
[EndTime "11:33:02 PST"]
[Termination "Game drawn by agreement"]

1. e4 {[%clk 0:03:00.9]} 1... Nc6 {[%clk 0:03:00]} 2. Nf3 {[%clk 0:02:58.5]}
2... d6 {[%clk 0:03:00.1]} 3. h3 {[%clk 0:02:57.2]} 3... Nf6 {[%clk 0:03:00.1]}
4. Nc3 {[%clk 0:02:56.2]} 4... e5 {[%clk 0:03:00.1]} 5. d4 {[%clk 0:02:56]} 5...
Be7 {[%clk 0:03:00.2]} 6. Bb5 {[%clk 0:02:49.5]} 6... exd4 {[%clk 0:02:59.1]} 7.
Nxd4 {[%clk 0:02:49.7]} 7... Bd7 {[%clk 0:02:59.4]} 8. Bxc6 {[%clk 0:02:49.5]}
8... bxc6 {[%clk 0:02:59.6]} 9. O-O {[%clk 0:02:49.8]} 9... O-O {[%clk
0:02:59.5]} 10. Qf3 {[%clk 0:02:48.4]} 10... Rb8 {[%clk 0:02:47.3]} 11. Rd1
{[%clk 0:02:46.2]} 11... c5 {[%clk 0:02:43.3]} 12. Nf5 {[%clk 0:02:42.4]} 12...
Bxf5 {[%clk 0:02:42.4]} 13. Qxf5 {[%clk 0:02:41.9]} 13... Qd7 {[%clk 0:02:38.9]}
14. Nd5 {[%clk 0:02:41.4]} 14... Rbd8 {[%clk 0:02:09.4]} 15. Nxe7+ {[%clk
0:02:30.8]} 15... Qxe7 {[%clk 0:02:08.8]} 16. Bg5 {[%clk 0:02:31]} 16... Qe6
{[%clk 0:02:06.2]} 17. Qf3 {[%clk 0:02:06.4]} 17... Rfe8 {[%clk 0:02:03.3]} 18.
Bxf6 {[%clk 0:02:05.5]} 18... Qxf6 {[%clk 0:01:58.5]} 19. Qxf6 {[%clk
0:02:05.2]} 19... gxf6 {[%clk 0:01:58.6]} 20. f3 {[%clk 0:02:05.8]} 20... Rb8
{[%clk 0:01:44.9]} 21. b3 {[%clk 0:02:03.8]} 21... c4 {[%clk 0:01:39.8]} 22. Rd5
{[%clk 0:02:01.8]} 22... Re5 {[%clk 0:01:35.8]} 23. Rad1 {[%clk 0:01:56.8]}
23... cxb3 {[%clk 0:01:32.6]} 24. axb3 {[%clk 0:01:57.7]} 24... Rb6 {[%clk
0:01:30.3]} 25. Kf2 {[%clk 0:01:44.6]} 25... Rc6 {[%clk 0:01:29.2]} 26. c4
{[%clk 0:01:36.2]} 26... Rb6 {[%clk 0:01:28.7]} 27. R1d3 {[%clk 0:01:35.1]}
27... a5 {[%clk 0:01:25.3]} 28. Ke3 {[%clk 0:01:29.9]} 28... Kf8 {[%clk
0:01:23.6]} 29. Kd2 {[%clk 0:01:23.8]} 29... Ke7 {[%clk 0:01:21]} 30. Kc3 {[%clk
0:01:20.7]} 30... c6 {[%clk 0:01:16]} 31. Rxe5+ {[%clk 0:01:12.6]} 31... fxe5
{[%clk 0:01:15.4]} 32. Rd2 {[%clk 0:01:09.4]} 32... Ra6 {[%clk 0:01:02.2]} 33.
Ra2 {[%clk 0:01:04.1]} 33... c5 {[%clk 0:00:54.8]} 34. g3 {[%clk 0:00:50.8]}
34... Ke6 {[%clk 0:00:52.2]} 35. f4 {[%clk 0:00:49.3]} 35... f5 {[%clk
0:00:44.7]} 36. exf5+ {[%clk 0:00:14.5]} 36... Kxf5 {[%clk 0:00:43.5]} 37. Rf2
{[%clk 0:00:15]} 37... a4 {[%clk 0:00:38.6]} 38. g4+ {[%clk 0:00:03.1]} 38...
Kf6 {[%clk 0:00:30.8]} 39. fxe5+ {[%clk 0:00:02.5]} 39... Kxe5 {[%clk
0:00:29.9]} 40. Rf7 {[%clk 0:00:02]} 40... a3 {[%clk 0:00:26.7]} 41. Rf1 {[%clk
0:00:02.1]} 41... a2 {[%clk 0:00:24.8]} 42. Ra1 {[%clk 0:00:02.2]} 42... Kf4
{[%clk 0:00:25]} 43. b4 {[%clk 0:00:01.7]} 43... cxb4+ {[%clk 0:00:23.8]} 44.
Kxb4 {[%clk 0:00:02.1]} 44... Kg3 {[%clk 0:00:24]} 45. Kb5 {[%clk 0:00:02.4]}
45... Ra8 {[%clk 0:00:23.6]} 46. Kc6 {[%clk 0:00:02.7]} 46... Kxh3 {[%clk
0:00:22.9]} 47. Kxd6 {[%clk 0:00:02.6]} 47... Kxg4 {[%clk 0:00:22.3]} 48. c5
{[%clk 0:00:02.8]} 48... h5 {[%clk 0:00:22.2]} 49. c6 {[%clk 0:00:03.3]} 49...
h4 {[%clk 0:00:22.2]} 50. c7 {[%clk 0:00:03.8]} 50... h3 {[%clk 0:00:22]} 51.
Rxa2 {[%clk 0:00:04.3]} 51... Rc8 {[%clk 0:00:20.8]} 52. Ra4+ {[%clk 0:00:03.4]}
52... Kg3 {[%clk 0:00:20.3]} 53. Ra3+ {[%clk 0:00:03.9]} 53... Kg2 {[%clk
0:00:20.3]} 54. Ra2+ {[%clk 0:00:04.4]} 54... Kg1 {[%clk 0:00:19.3]} 1/2-1/2